bitfinex/quotes_ETHUSD_20241216
["timestamp","ask_amount","ask_price","bid_price","bid_amount"]
[1734390338367,0.03105407,4026.4,4024.5,0.13010848]
[1734390338368,0.41560661,4026.3,4024.5,0.13010848]
[1734390338575,0.44666067,4026.2,4024.5,0.13010848]
[1734390338746,0.41560661,4026.1,4024.5,0.13010848]
[1734390338934,0.41560661,4026.0,4024.0,4.02650392]
[1734390339142,0.41560661,4026.0,4023.9,0.12066821]
[1734390339143,0.03105405,4026.0,4024.1,0.55]
[1734390339339,0.41558422,4025.9,4024.0,0.55]
[1734390339650,0.44664022,4025.8,4024.0,0.55]
[1734390339870,1.39305543,4026.4,4023.9,1.14717213]
[1734390339871,0.41558422,4025.7,4023.9,1.02650392]
[1734390340042,0.41556419,4025.6,4023.9,1.02650392]
[1734390340244,0.44661552,4025.5,4023.6,1.14858834]
[1734390340438,0.41555538,4025.4,4023.5,1.02650392]
[1734390340743,0.44661551,4025.3,4023.5,1.02650392]
[1734390340970,0.18470417,4025.2,4023.5,1.02650392]
[1734390341176,0.03106012,4025.8,4023.6,1.61730649]
[1734390341360,0.41548196,4025.7,4023.9,1.57650392]
[1734390341563,0.41548196,4025.6,4023.9,1.57650392]
[1734390341760,0.18465866,4025.5,4023.9,1.57650392]
[1734390341969,0.0310565,4026.0,4023.9,1.57650392]
[1734390342277,0.41550131,4025.9,4024.0,0.69519188]
[1734390342479,0.0310565,4026.0,4024.0,0.69519188]
[1734390342480,0.41550131,4025.8,4024.0,0.69519188]
[1734390342659,0.41550131,4025.7,4024.0,0.69519188]
[1734390342860,0.41550131,4025.6,4024.0,0.69519188]
[1734390343063,0.36940808,4026.3,4024.2,1.02650392]
[1734390343269,1.26991629,4026.7,4024.3,2.02559741]
[1734390343270,0.41554685,4026.2,4024.3,2.02559741]
[1734390343480,0.41554685,4026.1,4024.3,0.99909349]
[1734390343641,0.36940808,4026.4,4024.3,0.99909349]
[1734390343642,0.41554685,4026.0,4024.3,0.99909349]
[1734390343844,0.41554685,4025.9,4024.3,0.99909349]
[1734390344044,0.18468634,4025.8,4024.3,0.99909349]
[1734390344289,0.18468634,4025.7,4024.5,0.55]
[1734390344460,0.03105309,4026.3,4024.5,0.55]
[1734390344647,1.30092721,4026.2,4024.2,3.0]
[1734390344843,1.30092721,4026.2,4024.2,1.02650392]
[1734390344844,0.41556843,4026.1,4024.2,1.02650392]
[1734390345148,0.03105308,4026.2,4024.1,1.02650392]
[1734390345149,0.44662466,4026.0,4024.1,1.02650392]
[1734390345454,0.03105623,4026.0,4024.2,1.66603712]
[1734390345779,0.41556919,4025.9,4024.2,1.66603712]
[1734390345948,0.41556919,4025.8,4024.2,1.66603712]
[1734390346148,0.41556919,4025.7,4024.2,1.66603712]
[1734390346349,0.18469734,4025.6,4024.2,1.66603712]
[1734390346676,0.18469734,4025.5,4024.3,0.70348652]
[1734390346885,0.03105621,4025.9,4024.3,0.70348652]
[1734390347079,1.02364735,4026.2,4024.3,0.70348652]
[1734390347080,0.41555029,4025.8,4024.3,0.70348652]
[1734390347254,0.41555029,4025.7,4024.3,0.70348652]
[1734390347455,0.18468902,4025.6,4024.3,1.72999044]
[1734390347667,0.18468902,4025.5,4024.3,1.72999044]
[1734390347877,1.42409858,4026.1,4024.4,0.62808054]
[1734390348048,2.55384067,4026.0,4024.4,0.62808054]
[1734390348249,1.27136113,4025.9,4024.4,1.65458446]
[1734390348449,0.41571529,4025.8,4024.4,1.65458446]
[1734390348645,0.03105618,4026.0,4024.4,1.65458446]
[1734390348646,0.41571529,4025.7,4024.4,1.65458446]
[1734390348957,1.4244446,4026.0,4024.4,1.65458446]
[1734390348958,0.41595555,4025.6,4024.5,0.62053994]
[1734390349282,1.02364735,4026.0,4024.3,3.0]
[1734390349283,0.41604722,4025.5,4024.3,1.02650392]
[1734390349482,0.41604722,4025.4,4024.3,1.02650392]
[1734390349784,1.05470352,4025.9,4024.2,4.02650392]
[1734390349785,0.18486913,4025.3,4024.2,4.02650392]
[1734390349981,0.40079374,4025.7,4024.2,4.02650392]
[1734390349982,0.18486913,4025.2,4024.2,4.02650392]
[1734390350182,0.40079374,4025.7,4024.2,4.02650392]
[1734390350343,0.92829977,4025.6,4024.2,4.02650392]
[1734390350685,0.44717516,4025.5,4024.3,1.02650392]
[1734390350993,0.41611808,4025.4,4024.3,1.02650392]
[1734390351183,0.41611808,4025.3,4024.2,4.02650392]
[1734390351348,0.18494138,4025.2,4024.2,4.02650392]
[1734390351549,0.17350119,4025.6,4024.2,1.02650392]
[1734390351785,3.97959306,4025.5,4023.9,1.02650392]
[1734390352082,3.95954953,4025.4,4023.8,1.02650392]
[1734390352314,3.95954953,4025.4,4023.7,1.02650392]
[1734390352315,3.60982792,4025.3,4023.7,1.02650392]
[1734390352514,2.32369659,4025.2,4023.7,1.02650392]
[1734390352692,0.41618788,4025.1,4023.6,1.14999244]
[1734390352888,0.60027188,4025.0,4023.6,1.5005906]
[1734390353105,0.44724896,4024.9,4023.6,1.5005906]
[1734390353416,0.41618788,4024.8,4023.6,1.5005906]
[1734390353616,0.44724896,4024.7,4023.6,1.5005906]
[1734390353781,0.18497308,4024.6,4023.6,1.5005906]
[1734390354114,0.03106108,4024.9,4023.6,1.5005906]
[1734390354317,0.55399771,4025.0,4023.6,1.5005906]
[1734390354318,0.41614227,4024.8,4023.6,1.5005906]
[1734390354528,0.18495212,4024.7,4023.6,1.5005906]
[1734390354816,0.03106107,4024.9,4023.5,3.11915517]
[1734390354817,0.41610404,4024.6,4023.5,1.14565909]
[1734390354981,0.18495212,4024.5,4023.5,0.11915517]
[1734390355183,0.18495212,4024.4,4023.4,1.02650392]
[1734390355438,0.03106106,4024.9,4023.3,1.02650392]
[1734390355739,1.78203476,4025.4,4023.3,1.02650392]
[1734390355740,0.41607585,4024.8,4023.3,1.02650392]
[1734390356042,0.41607585,4024.7,4023.3,1.02650392]
[1734390356326,0.41607585,4024.6,4023.1,1.02650392]
[1734390356479,0.44714051,4024.5,4023.1,1.59669041]
[1734390356679,0.41587365,4024.4,4023.1,1.59669041]
[1734390356879,0.21598726,4024.3,4023.1,1.59669041]
[1734390357128,0.03106465,4024.3,4023.1,1.59669041]
[1734390357416,0.3698456,4024.9,4023.2,1.57650392]
[1734390357622,0.41557266,4024.8,4023.3,1.10928347]
[1734390357833,0.41557266,4024.7,4023.3,1.43999029]
[1734390357995,0.41557266,4024.6,4023.3,1.43999029]
[1734390358182,0.41557266,4024.5,4023.3,1.43999029]
[1734390358563,0.1393493,4024.9,4023.3,1.43999029]
[1734390358693,0.18465735,4024.4,4023.3,1.43999029]
[1734390358900,0.1393493,4024.9,4023.4,0.60164942]
[1734390359081,0.41548304,4024.8,4023.4,0.60164942]
[1734390359283,0.1393493,4024.9,4023.4,0.60164942]
[1734390359284,0.41548304,4024.7,4023.4,0.60164942]
[1734390359478,0.18465925,4024.6,4023.4,0.60164942]
[1734390359818,0.18465925,4024.5,4023.4,0.60164942]
[1734390360007,0.18465925,4024.4,4023.4,0.60164942]
[1734390360185,0.36931471,4025.0,4023.4,0.60164942]
[1734390360519,0.55772217,4024.9,4023.5,0.55]
[1734390360823,0.18458664,4024.8,4023.5,4.90721074]
[1734390361007,0.36920863,4025.5,4023.5,4.90721074]
[1734390361186,1.26948925,4025.4,4023.5,4.90721074]
[1734390361388,0.18460493,4025.3,4023.5,4.90721074]
[1734390361594,0.18460493,4025.2,4023.5,3.88070682]
[1734390361793,0.4153483,4025.1,4023.6,0.55088602]
[1734390362118,0.4153483,4025.0,4023.6,0.55088602]
[1734390362280,0.4153483,4024.9,4023.6,0.55088602]
[1734390362486,0.18460493,4024.8,4023.6,0.55088602]
[1734390362793,0.36918939,4025.5,4023.6,0.55088602]
[1734390362986,1.42290224,4025.4,4023.7,0.57290394]
[1734390363321,0.41530498,4025.3,4023.7,0.57290394]
[1734390363518,0.41530498,4025.2,4023.8,0.88070682]
[1734390363694,0.18459078,4025.1,4024.0,0.55]
[1734390363897,1.39283232,4025.9,4024.0,0.55]
[1734390364098,3.00703628,4025.8,4024.1,0.49072107]
[1734390364423,2.95144653,4025.7,4024.1,0.49072107]
[1734390364585,1.63884651,4025.6,4024.1,0.49072107]
[1734390364920,0.41533729,4025.5,4024.1,0.49072107]
[1734390365122,0.41533729,4025.4,4024.1,0.49072107]
[1734390365322,0.03105724,4025.5,4023.7,3.05297188]
[1734390365323,1.30125313,4025.3,4023.7,1.02650392]
[1734390365618,1.27015843,4025.2,4023.6,1.02650392]
[1734390365821,1.27015843,4025.2,4023.4,4.67486783]
[1734390365822,1.27015843,4025.1,4023.5,1.02650392]
[1734390366023,0.41533729,4025.0,4023.5,1.02650392]
[1734390366319,0.41533729,4024.9,4023.6,0.57013717]
[1734390366520,0.41533729,4024.8,4023.6,0.57013717]
[1734390366730,0.18459435,4024.7,4023.6,0.57013717]
[1734390366896,0.18392269,4025.0,4023.6,0.57013717]
[1734390366897,0.18459435,4024.6,4023.6,0.57013717]
[1734390367223,0.18392269,4025.0,4023.6,0.57013717]
[1734390367427,0.41533858,4024.9,4023.4,1.02650392]
[1734390367586,0.1845955,4024.8,4023.4,1.02650392]
[1734390367919,0.1845955,4024.8,4023.3,3.0]
[1734390367920,0.44640151,4024.7,4023.3,1.02650392]
[1734390368126,0.41533858,4024.6,4023.2,1.02650392]
[1734390368321,1.02364735,4024.9,4023.2,1.02650392]
[1734390368322,0.44640312,4024.5,4023.2,1.02650392]
[1734390368627,0.1845955,4024.4,4023.3,0.60325717]
[1734390368823,0.1845955,4024.3,4023.3,0.60325717]
[1734390369126,0.03106454,4024.8,4023.3,0.60325717]
[1734390369313,0.41524844,4024.7,4023.3,0.60325717]
[1734390369513,0.44631298,4024.6,4023.3,0.60325717]
[1734390369712,0.41524844,4024.5,4023.3,0.60325717]
[1734390369887,0.17806057,4024.6,4023.3,0.60325717]
[1734390369888,0.18455488,4024.4,4023.3,0.60325717]
[1734390370218,0.18455488,4024.3,4023.3,0.60325717]
[1734390370426,0.03106453,4024.2,4023.3,0.60325717]
[1734390370620,0.03106453,4024.5,4023.3,0.60325717]
[1734390371010,0.18442207,4024.4,4023.3,0.60325717]
[1734390371214,0.2154866,4024.3,4023.3,0.60325717]
[1734390371525,0.14699603,4024.6,4023.3,0.60325717]
[1734390371826,0.03106452,4024.9,4023.0,1.2708657]
[1734390371827,0.41491218,4024.5,4023.0,1.2708657]
[1734390371992,0.18440541,4024.4,4023.0,1.4817568]
[1734390372192,0.18440541,4024.3,4023.0,1.4817568]
[1734390372485,0.36884467,4024.9,4023.0,1.35721074]
[1734390372704,0.414861,4024.8,4023.1,1.02650392]
[1734390372899,2.43009883,4025.0,4023.2,0.59080257]
[1734390372900,0.69935698,4024.7,4023.2,0.59080257]
[1734390373186,0.414861,4024.6,4023.3,1.3137]
[1734390373385,1.53547103,4025.4,4023.5,1.02650392]
[1734390373386,1.02364735,4025.4,4023.5,1.02650392]
[1734390373611,2.36473895,4025.8,4023.4,3.0]
[1734390373612,0.85375823,4025.3,4023.6,1.02650392]
[1734390373827,0.18441412,4025.2,4023.4,4.02650392]
[1734390374128,0.41493138,4025.1,4023.5,1.57650392]
[1734390374429,0.41493138,4025.0,4023.6,0.72217257]
[1734390374613,0.41493138,4024.9,4023.6,0.72217257]
[1734390374826,0.18441412,4024.8,4023.6,0.72217257]
[1734390375017,0.1844538,4024.7,4023.6,0.72217257]
[1734390375193,0.146964,4025.1,4023.6,0.72217257]
[1734390375511,0.41506769,4025.0,4023.6,0.72217257]
[1734390375689,0.61362448,4024.9,4023.3,1.02650392]
[1734390375891,0.61362448,4024.9,4023.0,1.14918914]
[1734390375892,0.44612893,4024.8,4023.0,1.14918914]
[1734390376088,0.41506769,4024.7,4023.1,0.55]
[1734390376292,0.44613142,4024.6,4023.1,0.55]
[1734390376532,0.41506769,4024.5,4023.1,0.55]
[1734390376690,0.44613178,4024.4,4023.2,0.18215481]
[1734390376895,0.44613178,4024.4,4023.0,0.12235897]
[1734390376896,0.4150566,4024.3,4023.0,0.12235897]
[1734390377129,0.21553495,4024.2,4023.0,1.02650392]
[1734390377305,0.0310651,4024.2,4023.0,0.55]
[1734390377503,0.03106486,4024.7,4023.0,0.55]
[1734390377728,0.4150552,4024.6,4022.9,1.02650392]
[1734390377932,0.44612129,4024.5,4022.9,0.6796037]
[1734390378230,0.4150552,4024.4,4022.9,0.6796037]
[1734390378397,0.44612151,4024.3,4022.9,0.6796037]
[1734390378595,0.4150552,4024.2,4022.9,0.6796037]
[1734390378822,0.4150552,4024.1,4022.9,0.6796037]
[1734390379006,0.18446903,4024.0,4023.0,0.1954687]
[1734390379206,0.03106631,4024.3,4022.8,0.12431129]
[1734390379207,0.18446903,4023.9,4022.8,0.55]
[1734390379430,0.18446903,4023.8,4022.8,0.55]
[1734390379631,0.03106633,4024.2,4022.8,0.55]
[1734390379828,0.41506673,4024.1,4022.8,0.55]
[1734390380009,0.41506673,4024.0,4022.8,0.55]
[1734390380204,0.0310663,4024.7,4022.8,0.55]
[1734390380205,0.18445802,4023.9,4022.8,0.55]
[1734390380532,0.39998235,4024.4,4022.8,0.55]
[1734390380831,0.41516359,4024.3,4022.9,0.18224576]
[1734390380996,0.44622989,4024.2,4022.9,0.18224576]
[1734390381197,0.44622989,4024.2,4022.5,1.88152174]
[1734390381198,0.41516359,4024.1,4022.3,1.02650392]
[1734390381398,0.41516359,4024.1,4022.3,0.12194079]
[1734390381399,2.94695332,4024.0,4022.3,0.12194079]
[1734390381611,2.94695332,4024.0,4021.7,1.02650392]
[1734390381612,3.93953236,4023.9,4021.7,1.02650392]
[1734390381910,0.03106902,4024.0,4021.3,2.8037594]
[1734390381911,3.97060706,4023.8,4021.6,1.02650392]
[1734390382109,3.93953236,4023.7,4021.6,1.02650392]
[1734390382310,0.0310747,4023.8,4021.6,1.02650392]
[1734390382311,1.36542063,4023.6,4021.6,0.33410188]
[1734390382536,0.53909021,4023.5,4021.6,0.33410188]
[1734390382833,0.57016562,4023.4,4021.6,0.33410188]
[1734390383038,0.41498648,4023.3,4021.6,0.28410188]
[1734390383236,0.44606189,4023.2,4021.5,0.12008086]
[1734390383440,0.44606189,4023.2,4021.5,0.33070682]
[1734390383441,0.41468411,4023.1,4021.5,0.33070682]
[1734390383604,0.18430405,4023.0,4021.4,1.02650392]
[1734390383803,0.18430405,4022.9,4021.3,1.02650392]
[1734390384029,0.18430405,4022.8,4021.3,1.02650392]
[1734390384216,0.12410384,4023.5,4021.3,1.02650392]
[1734390384217,0.18430405,4022.7,4021.3,0.57117851]
[1734390384421,0.03107605,4023.4,4021.3,0.57117851]
[1734390384620,0.41451105,4023.3,4021.4,0.55]
[1734390384946,0.44558714,4023.2,4021.4,0.55]
[1734390385144,0.41451105,4023.1,4021.4,0.55]
[1734390385442,0.21310158,4023.0,4021.4,0.55]
[1734390385604,0.18422965,4022.9,4021.4,1.06476824]
[1734390385809,0.18422965,4022.8,4021.1,3.0]
[1734390386005,0.41439074,4022.7,4020.7,1.02650392]
[1734390386245,0.44531564,4022.6,4020.6,1.02650392]
[1734390386431,0.44531564,4022.6,4020.6,0.12189613]
[1734390386432,0.41420754,4022.5,4020.6,0.12189613]
[1734390386633,1.02364735,4023.2,4020.3,1.79020392]
[1734390386634,0.21531217,4022.4,4020.3,1.90911493]
[1734390386820,0.18422965,4022.3,4020.4,0.67669981]
[1734390387143,0.03108252,4022.4,4020.4,0.67669981]
[1734390387144,0.18422965,4022.2,4020.4,0.67669981]
[1734390387317,0.0310832,4023.1,4020.4,0.67669981]
[1734390387518,0.0310832,4023.1,4020.4,0.34599299]
[1734390387519,0.41361891,4023.0,4020.4,0.34599299]
[1734390387835,0.44470211,4022.9,4020.4,0.34599299]
[1734390388145,0.41361891,4022.8,4020.5,0.14914079]
[1734390388346,0.18383059,4022.7,4021.3,3.0]
[1734390388509,0.18383059,4022.6,4020.6,0.7637]
[1734390388710,0.18383059,4022.5,4020.7,0.55]
[1734390388913,0.58108317,4023.4,4021.4,3.0]
[1734390389207,0.41337058,4023.3,4021.4,3.0]
[1734390389451,0.44445225,4023.2,4021.4,3.0]
[1734390389753,0.03108167,4023.2,4020.8,0.17535476]
[1734390389908,0.41321794,4023.1,4020.8,0.17535476]
[1734390390110,0.41321794,4023.1,4020.6,0.7637]
[1734390390111,0.183663,4023.0,4021.0,0.55]
[1734390390352,0.183663,4022.9,4021.0,0.55]
[1734390390554,1.02364735,4023.9,4021.0,0.55]
[1734390390555,0.55,4023.8,4021.0,0.55]
[1734390390711,0.55,4023.6,4021.0,0.55]
[1734390390924,0.41319502,4023.5,4021.0,0.55]
[1734390391233,0.41319502,4023.4,4021.0,0.55]
[1734390391437,0.4442745,4023.3,4021.0,0.55]
[1734390391755,0.41319502,4023.2,4022.0,3.0]
[1734390392048,0.44423988,4023.1,4020.9,0.14890548]
[1734390392255,0.18364224,4023.0,4021.9,3.0]
[1734390392434,0.21472264,4022.9,4021.9,3.0]
[1734390392638,0.18364224,4022.8,4021.9,3.0]
[1734390392843,0.21472263,4022.7,4021.9,3.0]
[1734390393067,0.03108039,4022.7,4020.9,0.14890548]
[1734390393368,0.18357257,4022.6,4021.9,3.0]
[1734390393530,0.18357257,4022.5,4021.9,3.0]
[1734390393713,0.18357257,4022.4,4020.6,0.12080458]
[1734390394072,0.58108445,4023.3,4020.2,0.7637]
[1734390394355,0.58108445,4023.3,4020.2,0.88487626]
[1734390394356,0.55,4023.1,4020.2,0.88487626]
[1734390394663,0.44408159,4023.0,4020.2,0.88487626]
[1734390394821,0.41299715,4022.9,4020.2,0.88487626]
[1734390395021,0.44408159,4022.8,4020.2,0.88487626]
[1734390395223,0.18355109,4022.7,4020.2,0.88487626]
[1734390395528,0.21463553,4022.6,4020.2,0.88487626]
[1734390395848,0.18355109,4022.5,4020.2,0.88487626]
[1734390396016,0.55,4023.1,4020.2,0.88487626]
[1734390396017,0.21463552,4022.4,4020.2,0.88487626]
[1734390396217,0.03108443,4022.4,4020.2,0.88487626]
[1734390396419,0.18358943,4022.3,4020.3,0.55]
[1734390396661,0.18358943,4022.2,4020.3,0.69348763]
[1734390396877,0.03108443,4023.0,4019.5,1.55081492]
[1734390396878,0.41302778,4022.1,4019.5,0.7637]
[1734390397013,1.02364735,4022.8,4019.5,0.7637]
[1734390397014,0.44411723,4022.0,4019.5,0.7637]
[1734390397216,0.41302778,4021.9,4019.5,0.7637]
[1734390397433,0.44411722,4021.8,4019.5,0.88496141]
[1734390397634,0.41302778,4021.7,4019.5,0.88496141]
[1734390397877,0.21467987,4021.6,4019.5,0.12126141]
[1734390398087,0.18358943,4021.5,4019.2,0.7637]
[1734390398289,0.3823365,4022.4,4019.2,0.7637]
[1734390398290,0.21468079,4021.4,4019.2,0.7637]
[1734390398600,0.21468079,4021.4,4018.5,1.55581492]
[1734390398601,0.18358943,4021.3,4018.8,0.1212979]
[1734390398738,1.02364735,4022.4,4018.8,0.8849979]
[1734390398739,0.21468225,4021.2,4018.8,0.8849979]
[1734390398932,0.18358943,4021.1,4018.8,0.7637]
[1734390399139,0.21468282,4021.0,4018.8,0.7637]
[1734390399445,0.21468282,4021.0,4019.1,0.12558553]
[1734390399446,0.03109339,4021.0,4019.1,0.12558553]
[1734390399638,0.58109422,4022.1,4019.1,0.12558553]
[1734390399870,0.41247203,4022.0,4019.1,0.12558553]
[1734390400053,0.41248119,4021.9,4019.2,0.29070682]
[1734390400272,0.36665645,4022.3,4019.5,0.7637]
[1734390400273,0.41248119,4021.8,4019.5,0.7637]
[1734390400450,0.41248119,4021.7,4019.5,0.7637]
[1734390400652,0.18332091,4021.6,4020.3,3.0]
[1734390400868,0.18332091,4021.5,4019.6,0.55]
[1734390401210,0.03109057,4022.4,4019.7,0.13137]
[1734390401374,0.03109057,4022.4,4020.3,3.0]
[1734390401375,0.22912859,4022.3,4020.3,3.0]
[1734390401703,0.81021917,4022.2,4019.7,0.13137]
[1734390402018,0.22912859,4022.1,4019.7,0.13137]
[1734390402155,0.26021916,4022.0,4019.7,0.13137]
[1734390402493,0.22912859,4021.9,4019.8,0.1568302]
[1734390402710,0.26021915,4021.8,4019.6,0.67323195]
[1734390402885,0.03109056,4021.8,4019.6,0.12323195]
[1734390403193,0.22908818,4021.7,4019.2,0.55]
[1734390403395,0.55,4022.0,4019.2,0.55]
[1734390403561,0.22908757,4021.9,4019.2,0.55]
[1734390403760,0.03109192,4022.3,4019.2,0.55]
[1734390403961,0.22909596,4022.2,4019.2,0.55]
[1734390404161,0.26018679,4022.1,4020.3,3.0]
[1734390404385,0.22909596,4022.0,4020.3,3.0]
[1734390404582,0.03109085,4021.9,4020.3,3.0]
[1734390404799,0.22909596,4021.8,4020.3,3.0]
[1734390404962,0.22909596,4021.8,4019.3,0.8223]
[1734390404963,0.03109084,4021.7,4019.3,0.8223]
[1734390405178,0.22909596,4021.6,4019.4,0.14978855]
[1734390405483,0.03109083,4021.5,4020.3,3.0]
[1734390405688,0.67412929,4022.3,4020.6,3.0]
[1734390406013,0.22929095,4022.2,4020.9,3.0]
[1734390406342,0.0310875,4022.2,4020.0,0.8223]
[1734390406492,0.22945571,4022.1,4020.9,3.0]
[1734390406802,0.0310866,4022.4,4020.1,0.55]
[1734390406996,0.22949157,4022.3,4020.3,0.55]
[1734390407167,0.26057696,4022.2,4020.3,0.55]
[1734390407366,0.22949157,4022.1,4020.3,0.55]
[1734390407589,0.03108539,4022.2,4020.3,0.55]
[1734390407873,0.15522379,4022.9,4021.2,3.0]
[1734390408069,0.15522379,4022.9,4020.3,0.55]
[1734390408070,0.3537554,4022.8,4020.3,0.55]
[1734390408315,0.3848377,4022.7,4020.5,0.55]
[1734390408614,0.22961699,4022.6,4021.5,3.0]
[1734390408831,0.03108228,4022.5,4020.7,0.55]
[1734390409177,0.22987041,4022.4,4021.5,3.0]
[1734390409381,1.39060935,4023.9,4021.5,3.0]
[1734390409382,0.12413841,4022.8,4021.5,3.0]
[1734390409600,0.12413841,4022.7,4020.7,0.55]
[1734390409795,0.35399972,4022.6,4021.5,3.0]
[1734390410008,0.26095677,4022.5,4021.5,3.0]
[1734390410213,0.26095677,4022.5,4020.7,0.55]
[1734390410214,0.22987451,4022.4,4020.7,0.55]
[1734390410416,0.22987451,4022.3,4020.7,0.55]
[1734390410690,0.12412521,4022.4,4020.7,0.55]
[1734390410920,0.23002065,4022.3,4020.7,0.55]
[1734390411098,0.55,4023.3,4020.7,0.55]
[1734390411281,0.75318784,4023.2,4020.7,0.67125304]
[1734390411486,0.85242439,4023.1,4020.7,0.67125304]
[1734390411795,0.03108223,4023.0,4020.7,0.12125304]
[1734390412002,0.9182926,4022.9,4020.0,0.12154277]
[1734390412336,0.9182926,4022.9,4020.1,0.55]
[1734390412337,0.52350558,4022.8,4020.1,0.55]
[1734390412510,0.62278772,4022.7,4021.3,3.0]
[1734390412682,0.75368677,4022.6,4021.3,3.0]
[1734390412884,0.72270723,4022.5,4021.3,3.0]
[1734390413083,0.75379225,4022.4,4020.0,0.55]
[1734390413289,0.72270723,4022.3,4020.0,0.55]
[1734390413497,0.72270723,4022.3,4020.2,0.55]
[1734390413498,0.38544453,4022.2,4020.2,0.55]
[1734390413693,0.35435895,4022.1,4020.2,0.55]
[1734390413894,0.35442393,4022.0,4020.2,0.55]
[1734390414114,0.35442393,4021.9,4020.2,0.55]
[1734390414339,0.23028265,4021.8,4020.2,0.55]
[1734390414534,0.12413778,4022.1,4020.2,0.55]
[1734390414839,0.35447109,4022.0,4021.2,3.0]
[1734390415019,0.35447109,4021.9,4020.2,0.55]
[1734390415319,0.23033331,4021.8,4020.2,0.55]
[1734390415618,0.39953782,4022.2,4020.2,0.67377527]
[1734390415817,0.35453264,4022.1,4020.2,0.67377527]
[1734390416032,0.13036884,4022.7,4020.2,0.67377527]
[1734390416033,0.75407085,4022.0,4020.2,0.67377527]
[1734390416193,0.23039164,4021.9,4021.1,3.0]
[1734390416394,0.13036884,4022.7,4021.1,3.0]
[1734390416395,0.38562167,4021.8,4021.1,3.0]
[1734390416603,0.35453572,4021.7,4021.1,3.0]
[1734390416933,0.13092868,4021.6,4021.1,3.0]
[1734390417223,0.13092868,4021.6,4019.9,0.94599657]
[1734390417224,0.49277251,4022.3,4019.9,0.12369657]
[1734390417396,0.52386099,4022.2,4021.0,3.0]
[1734390417725,0.52386099,4022.2,4019.5,0.8223]
[1734390417726,0.49277234,4022.1,4019.5,0.8223]
[1734390417910,1.15401619,4022.7,4019.5,0.8223]
[1734390417911,0.15523595,4022.0,4019.6,0.12627954]
[1734390418222,0.12414571,4021.9,4019.6,0.41698636]
[1734390418385,0.15523595,4021.8,4019.6,0.12627954]
[1734390418591,0.15523595,4021.8,4019.4,0.12133627]
[1734390418592,0.12414571,4021.7,4019.4,0.12133627]
[1734390418819,1.02364735,4022.2,4019.0,1.11300682]
[1734390418820,0.15523904,4021.6,4019.0,1.11300682]
[1734390419005,0.12414571,4021.5,4019.0,1.23635056]
[1734390419213,0.15523903,4021.4,4019.0,1.23635056]
[1734390419424,0.12417062,4021.3,4019.0,1.23635056]
[1734390419588,0.15526394,4021.2,4019.0,1.23635056]
[1734390419788,0.12417062,4021.1,4019.1,0.55]
[1734390420118,0.12417062,4021.0,4019.3,0.55]
[1734390420326,0.03109331,4022.0,4019.3,0.55]
[1734390420327,0.12417062,4020.9,4020.4,3.0]
[1734390420495,0.12417062,4020.9,4019.3,0.55]
[1734390420496,0.12417062,4021.9,4019.3,0.55]
[1734390420698,0.15525692,4021.8,4019.3,0.55]
[1734390420897,0.12416361,4021.7,4019.4,0.12437699]
[1734390421228,0.12416361,4021.6,4019.4,0.12437699]
[1734390421532,1.53547103,4022.3,4019.8,0.7763]
[1734390421533,0.12416361,4021.5,4019.8,0.7763]
[1734390421717,0.03109181,4022.2,4019.8,0.7763]
[1734390421718,0.1241544,4021.4,4019.8,0.7763]
[1734390421894,0.1241544,4021.3,4019.9,0.55]
[1734390422225,0.12414781,4022.3,4020.8,3.0]
[1734390422412,0.15523629,4022.2,4020.0,0.13263]
[1734390422613,0.12414781,4022.1,4020.0,0.13263]
[1734390422916,0.15523646,4022.0,4020.0,0.25538339]
[1734390423114,0.12414781,4021.9,4020.0,0.25538339]
[1734390423433,0.15523646,4021.8,4020.0,0.25538339]
[1734390423725,0.12414781,4021.7,4020.0,0.25538339]
[1734390423927,0.15523646,4021.6,4020.0,0.25538339]
[1734390424131,0.15523646,4021.6,4020.8,3.0]
[1734390424132,0.12414781,4021.5,4020.8,3.0]
[1734390424326,0.03108865,4021.6,4020.0,0.25538339]
[1734390424327,0.15523628,4021.4,4020.0,0.25538339]
[1734390424532,0.12414781,4021.3,4020.0,0.25538339]
[1734390424730,0.12414781,4021.2,4020.0,0.25538339]
[1734390424935,0.03108864,4022.0,4020.0,0.25538339]
[1734390425136,2.04729471,4022.6,4020.1,0.55]
[1734390425137,0.12415353,4021.9,4020.1,0.55]
[1734390425433,0.12415353,4021.8,4020.3,0.7948]
[1734390425598,1.02364735,4022.6,4020.3,0.7948]
[1734390425931,0.12413668,4022.5,4020.3,0.7948]
[1734390426132,0.12413668,4022.4,4020.3,0.7948]
[1734390426342,0.85209144,4022.6,4020.3,0.7948]
[1734390426343,0.12413668,4022.3,4020.3,0.7948]
[1734390426545,0.12413668,4022.2,4020.4,0.55544926]
[1734390426762,0.12413668,4022.1,4020.4,0.55544926]
[1734390426912,0.12413668,4022.0,4020.4,0.55544926]
[1734390427108,0.12413668,4021.9,4020.4,0.55544926]
[1734390427334,0.12413547,4021.8,4020.4,0.55544926]
[1734390427643,0.12413693,4022.1,4020.5,0.55599419]
[1734390427943,0.12413693,4022.0,4020.5,0.55599419]
[1734390428241,0.12413693,4021.9,4020.5,0.55599419]
[1734390428575,0.12413693,4021.8,4020.5,0.55599419]
[1734390428711,0.12413693,4022.1,4020.5,0.55599419]
[1734390429046,0.3547329,4022.0,4020.6,0.43507942]
[1734390429245,0.3547329,4021.9,4020.3,1.82130392]
[1734390429410,0.3547329,4021.8,4020.3,4.82130392]
[1734390429718,0.23059597,4021.7,4020.3,1.82130392]
[1734390430058,0.12413693,4021.9,4020.3,1.82130392]
[1734390430274,0.23064972,4021.8,4020.5,1.57650392]
[1734390430427,0.49319317,4022.4,4020.7,0.55]
[1734390430627,0.72386472,4022.3,4020.7,0.55]
[1734390430851,0.35480848,4022.2,4020.7,4.57650392]
[1734390431143,0.12412481,4022.4,4020.8,1.02650392]
[1734390431345,0.2306685,4022.3,4020.9,1.02650392]
[1734390431547,0.2306685,4022.3,4020.8,3.0]
[1734390431548,0.2207485,4022.3,4021.0,1.6392358]
[1734390431845,0.12412481,4022.5,4021.0,1.6392358]
[1734390432267,0.97621625,4022.6,4021.0,2.4340358]
[1734390432484,0.12412481,4022.5,4021.0,2.4340358]
[1734390432958,0.85209144,4022.6,4021.0,2.4340358]
[1734390433113,0.32411117,4022.6,4021.1,3.69848507]
[1734390433312,0.19998636,4022.6,4021.1,0.69848507]
[1734390433763,0.32411117,4022.6,4021.1,0.69848507]
[1734390433950,0.19998636,4022.6,4021.1,0.69848507]
[1734390434463,0.355193,4022.6,4021.1,0.69848507]
[1734390434611,0.03108183,4022.6,4021.0,0.12389324]